bitfinex/quotes_SOLUSD_20260217
["timestamp","ask_amount","ask_price","bid_price","bid_amount"]
[1771348454024,7.38131067,83.68,83.651,0.49722949]
[1771348454433,0.47502617,83.685,83.653,0.48416848]
[1771348454634,12.42467351,83.685,83.653,0.48416848]
[1771348455819,0.46413693,83.679,83.653,0.48416848]
[1771348456025,11.94964734,83.685,83.653,0.48416848]
[1771348456226,7.38131067,83.68,83.653,0.48416848]
[1771348456625,19.33174025,83.68,83.653,0.48416848]
[1771348458027,7.38131067,83.68,83.654,11.954001]
[1771348458234,0.46413693,83.687,83.655,0.48416848]
[1771348458434,11.94943001,83.686,83.655,0.48416848]
[1771348458743,0.46413693,83.687,83.657,0.48416848]
[1771348459041,0.46413693,83.696,83.661,0.48416848]
[1771348459229,0.46413693,83.695,83.661,0.48416848]
[1771348459432,0.46413693,83.679,83.652,11.95425219]
[1771348459629,0.46413693,83.669,83.645,11.95522489]
[1771348459935,7.38131067,83.68,83.641,0.48416848]
[1771348460334,0.46413693,83.685,83.651,0.48416848]
[1771348460523,0.46413693,83.685,83.661,0.48416848]
[1771348460730,0.46413693,83.695,83.661,0.48416848]
[1771348460936,0.46413693,83.693,83.662,11.95285792]
[1771348461431,0.46413693,83.693,83.663,0.48416848]
[1771348462446,11.94828781,83.694,83.655,11.9538581]
[1771348462447,0.46413693,83.679,83.655,11.9538581]
[1771348462641,0.46413693,83.679,83.654,0.48416848]
[1771348462840,0.46413693,83.693,83.656,0.48416848]
[1771348463034,7.38131067,83.69,83.658,0.48416848]
[1771348463331,11.94900166,83.689,83.658,0.48416848]
[1771348463530,7.38131067,83.69,83.658,0.48416848]
[1771348463928,19.33024477,83.69,83.658,0.48416848]
[1771348464130,19.7943817,83.69,83.658,0.48416848]
[1771348464736,0.46413693,83.689,83.658,0.48416848]
[1771348465132,0.46413693,83.687,83.657,11.95357232]
[1771348465338,11.94914444,83.688,83.65,11.95457262]
[1771348465339,0.46413693,83.679,83.65,11.95457262]
[1771348465535,0.46413693,83.679,83.651,0.48416848]
[1771348466143,0.46413693,83.687,83.651,0.48416848]
[1771348468150,0.46413693,83.685,83.653,0.48416848]
[1771348469056,0.46413693,83.685,83.65,7.35983187]
[1771348469958,0.46413693,83.685,83.652,11.9542868]
[1771348470836,0.46413693,83.685,83.653,0.48416848]
[1771348471456,0.46413693,83.683,83.653,0.48416848]
[1771348472357,2.47299813,83.68,83.653,0.48416848]
[1771348472758,0.46413693,83.679,83.642,0.48416848]
[1771348472959,14.42337235,83.68,83.642,0.48416848]
[1771348473154,0.46413693,83.679,83.642,0.48416848]
[1771348473360,0.46413693,83.669,83.642,0.48416848]
[1771348473571,0.46413693,83.659,83.626,0.48416848]
[1771348473875,0.46413693,83.659,83.623,29.89582435]
[1771348473876,0.46413693,83.666,83.631,0.48416848]
[1771348474746,0.46413693,83.664,83.633,0.48416848]
[1771348476660,0.46413693,83.664,83.632,41.85000956]
[1771348476661,0.46413693,83.675,83.641,0.48416848]
[1771348477162,0.46413693,83.692,83.661,0.48416848]
[1771348477365,0.46413693,83.698,83.661,0.48416848]
[1771348477667,0.46413693,83.705,83.671,0.48416848]
[1771348477844,0.46413693,83.699,83.671,0.48416848]
[1771348478046,0.46413693,83.689,83.662,0.48416848]
[1771348478261,0.46413693,83.689,83.651,16.96416848]
[1771348478769,2.93713506,83.68,83.652,0.48416848]
[1771348478963,2.47299813,83.69,83.652,0.48416848]
[1771348479157,0.46413693,83.689,83.652,0.48416848]
[1771348479963,0.46413693,83.698,83.661,0.48416848]
[1771348480473,0.46413693,83.698,83.671,0.48416848]
[1771348480671,2.47299813,83.7,83.671,0.48416848]
[1771348480870,0.46413693,83.699,83.662,0.48416848]
[1771348481983,0.46413693,83.699,83.664,0.48416848]
[1771348482472,0.46413693,83.709,83.671,0.48416848]
[1771348482668,0.46413693,83.707,83.671,0.48416848]
[1771348483458,0.46413693,83.707,83.68,2.95716661]
[1771348483751,0.46413693,83.716,83.681,0.48416848]
[1771348483952,2.67299813,83.72,83.67,2.47299813]
[1771348483953,0.2,83.72,83.692,41.82000669]
[1771348484161,0.2,83.72,83.693,0.48416848]
[1771348484375,0.2,83.72,83.701,0.45007313]
[1771348484553,0.2,83.74,83.712,0.45007313]
[1771348484753,0.2,83.74,83.721,0.45007313]
[1771348485055,0.476191,83.751,83.721,0.45007313]
[1771348485261,0.476191,83.769,83.74,2.47299813]
[1771348485455,0.476191,83.777,83.741,0.45007313]
[1771348485970,7.34327713,83.77,83.735,16.5]
[1771348486172,0.476191,83.768,83.736,11.94229483]
[1771348486474,0.476191,83.768,83.732,0.45007313]
[1771348486475,0.476191,83.768,83.732,12.39291809]
[1771348487166,0.476191,83.779,83.75,7.34327713]
[1771348487567,0.2,83.78,83.76,7.34327713]
[1771348487887,0.2,83.78,83.761,0.45007313]
[1771348488059,0.476191,83.779,83.752,16.5]
[1771348488258,12.41235638,83.779,83.751,11.94015593]
[1771348488478,0.476191,83.778,83.74,7.34327713]
[1771348488777,7.34327713,83.77,83.738,11.94189896]
[1771348488985,0.476191,83.769,83.74,7.34327713]
[1771348489195,0.476191,83.769,83.734,11.94253766]
[1771348489357,41.77657884,83.779,83.721,29.86073044]
[1771348489358,0.476191,83.759,83.721,11.94443449]
[1771348489775,0.476191,83.759,83.731,0.45007313]
[1771348490167,0.476191,83.749,83.711,0.45007313]
[1771348490367,0.476191,83.749,83.72,7.34327713]
[1771348491176,0.476191,83.749,83.713,0.45007313]
[1771348491481,0.476191,83.739,83.71,7.34327713]
[1771348492257,0.476191,83.739,83.711,11.94586135]
[1771348492464,12.41816154,83.739,83.711,11.94586135]
[1771348493180,0.4694587,83.755,83.73,7.34327713]
[1771348493358,0.4694587,83.755,83.721,0.49597818]
[1771348494484,12.40768328,83.765,83.731,0.49597818]
[1771348494687,0.4694587,83.764,83.74,7.34327713]
[1771348494861,0.4694587,83.764,83.731,0.49597818]
[1771348496789,0.4694587,83.762,83.732,11.94286533]
[1771348497780,0.4694587,83.759,83.725,16.5]
[1771348498169,0.4694587,83.759,83.723,11.9440503]
[1771348498579,0.4694587,83.759,83.73,7.34327713]
[1771348499085,0.4694587,83.759,83.72,7.83925531]
[1771348499283,0.4694587,83.757,83.73,7.34327713]
[1771348499469,0.4694587,83.757,83.721,0.49597818]
[1771348499660,0.4694587,83.749,83.717,11.94500519]
[1771348499859,0.4694587,83.749,83.711,11.94574066]
[1771348500088,0.4694587,83.749,83.72,7.34327713]
[1771348500277,0.4694587,83.749,83.712,0.49597818]
[1771348500502,0.4694587,83.749,83.697,29.86954508]
[1771348500503,0.4694587,83.757,83.73,7.34327713]
[1771348500684,0.4694587,83.765,83.732,0.49597818]
[1771348500989,11.93520644,83.786,83.751,0.49597818]
[1771348501185,0.4694587,83.759,83.69,0.49597818]
[1771348501361,0.4694587,83.759,83.72,7.34327713]
[1771348501561,0.4694587,83.759,83.73,7.83925531]
[1771348501766,0.4694587,83.768,83.74,7.34327713]
[1771348502690,11.93698429,83.774,83.75,7.34327713]
[1771348502888,0.4694587,83.777,83.742,0.49597818]
[1771348503392,0.4694587,83.775,83.75,7.34327713]
[1771348503885,0.2,83.78,83.761,0.49597818]
[1771348504067,0.4694587,83.779,83.753,0.49597818]
[1771348504263,0.4694587,83.779,83.736,11.94216744]
[1771348504264,0.4694587,83.769,83.736,11.94216744]
[1771348504465,0.4694587,83.769,83.732,11.94283735]
[1771348504772,0.4694587,83.767,83.73,7.34327713]
[1771348505093,0.4694587,83.759,83.724,11.94400535]
[1771348505870,0.4694587,83.767,83.731,0.49597818]
[1771348506985,0.4694587,83.765,83.733,0.49597818]
[1771348507581,0.4694587,83.765,83.74,7.34327713]
[1771348507891,0.4694587,83.776,83.741,0.49597818]
[1771348508073,0.4694587,83.776,83.751,0.49597818]
[1771348508268,0.2,83.78,83.751,0.49597818]
[1771348508676,12.13615855,83.78,83.751,0.49597818]
[1771348508871,0.2,83.79,83.771,0.49597818]
[1771348509078,0.2,83.79,83.78,7.34327713]
[1771348509079,1e-08,83.79,83.78,7.34327713]
[1771348509391,0.4694587,83.803,83.78,7.34327713]
[1771348509590,7.54327713,83.81,83.77,16.48]
[1771348509591,1e-08,83.81,83.791,0.49597818]
[1771348509791,15.1,83.85,83.79,7.34327713]
[1771348509792,0.4694587,83.829,83.79,23.82327713]
[1771348509994,0.4694587,83.819,83.78,7.34327713]
[1771348510196,0.4694587,83.819,83.78,7.83925531]
[1771348510494,0.4694587,83.819,83.79,7.34327713]
[1771348510698,0.4694587,83.819,83.781,0.49597818]
[1771348510875,0.4694587,83.819,83.79,7.34327713]
[1771348511194,0.4694587,83.817,83.791,11.93445596]
[1771348511399,0.4694587,83.825,83.792,0.49597818]
[1771348511585,0.4694587,83.819,83.785,16.48]
[1771348511779,0.4694587,83.819,83.78,7.34327713]
[1771348511982,0.4694587,83.809,83.781,11.93588045]
[1771348512198,12.39855235,83.829,83.801,0.49597818]
[1771348512503,0.4694587,83.828,83.792,0.49597818]
[1771348512685,0.4694587,83.828,83.79,7.34327713]
[1771348513277,0.4694587,83.826,83.791,11.93445596]
[1771348513493,0.4694587,83.826,83.791,12.43043414]
[1771348513700,0.4694587,83.819,83.79,7.34327713]
[1771348513881,0.4694587,83.819,83.782,12.43167337]
[1771348514077,7.34327713,83.81,83.782,11.93569519]
[1771348514296,0.4694587,83.809,83.777,11.93633976]
[1771348514598,0.4694587,83.809,83.78,7.34327713]
[1771348515523,0.45746915,83.808,83.78,7.34327713]
[1771348515698,0.45746915,83.808,83.771,11.93730527]
[1771348516578,47.71272707,83.836,83.771,11.93730527]
[1771348516579,0.45746915,83.814,83.781,0.45763076]
[1771348516781,7.34327713,83.82,83.78,7.34327713]
[1771348516782,0.45746915,83.812,83.78,7.34327713]
[1771348517487,0.45746915,83.809,83.777,16.48]
[1771348517802,0.45746915,83.809,83.778,11.93630786]
[1771348518580,0.45746915,83.809,83.78,7.34327713]
[1771348518803,0.45746915,83.817,83.79,7.80090789]
[1771348519108,0.45746915,83.817,83.79,7.34327713]
[1771348519493,0.45746915,83.815,83.788,16.48]
[1771348519691,0.45746915,83.815,83.782,11.93568145]
[1771348519997,0.45746915,83.809,83.782,11.93568145]
[1771348520197,14.9,83.834,83.791,0.45763076]
[1771348520198,0.45746915,83.827,83.791,0.45763076]
[1771348520401,0.45746915,83.809,83.778,11.93628162]
[1771348520715,0.45746915,83.809,83.772,16.48]
[1771348521002,0.45746915,83.809,83.774,0.45763076]
[1771348521403,7.34327713,83.8,83.768,11.93763692]
[1771348521605,0.45746915,83.799,83.768,11.93763692]
[1771348521808,0.45746915,83.799,83.77,7.34327713]
[1771348522202,0.45746915,83.799,83.767,0.45763076]
[1771348522412,0.45746915,83.799,83.767,12.39541484]
[1771348522612,0.45746915,83.799,83.77,7.34327713]
[1771348522906,0.45746915,83.799,83.767,12.395488]
[1771348523104,0.45746915,83.799,83.77,7.34327713]
[1771348523609,0.45746915,83.797,83.768,16.48]
[1771348524199,0.45746915,83.789,83.754,11.9395986]
[1771348524404,7.34327713,83.79,83.754,11.9395986]
[1771348524405,0.45746915,83.797,83.761,0.45763076]
[1771348525100,11.93345903,83.798,83.761,0.45763076]
[1771348525407,0.45746915,83.806,83.771,0.45763076]
[1771348525612,0.45746915,83.817,83.791,11.93445596]
[1771348525789,0.45746915,83.815,83.79,7.34327713]
[1771348525998,0.45746915,83.815,83.783,0.45763076]
[1771348526309,0.45746915,83.815,83.785,0.45763076]
[1771348526702,0.45746915,83.815,83.787,0.45763076]
[1771348526915,7.34327713,83.82,83.791,0.45763076]
[1771348526916,11.93046922,83.819,83.791,0.45763076]
[1771348527093,7.34327713,83.82,83.791,0.45763076]
[1771348527293,0.45746915,83.819,83.791,0.45763076]
[1771348527494,0.45746915,83.819,83.791,16.95763076]
[1771348527795,7.34327713,83.81,83.789,16.5]
[1771348527992,0.45746915,83.809,83.774,11.93687779]
[1771348528197,0.45746915,83.799,83.774,11.93687779]
[1771348529395,0.45746915,83.789,83.767,16.5]
[1771348529596,7.34327713,83.78,83.721,47.77729962]
[1771348529795,7.34327713,83.76,83.731,0.45763076]
[1771348530109,0.45746915,83.769,83.741,0.45763076]
[1771348530297,0.45746915,83.769,83.741,16.97763076]
[1771348530524,0.45746915,83.779,83.742,0.45763076]
[1771348530691,0.45746915,83.779,83.743,0.45763076]
[1771348530895,5.36086188,83.845,83.723,41.80452204]
[1771348530896,0.45746915,83.789,83.751,0.45763076]
[1771348531096,0.45746915,83.798,83.761,0.45763076]
[1771348531293,7.34655889,83.79,83.761,0.45763076]
[1771348531513,7.34655889,83.79,83.761,16.95763076]
[1771348531718,7.34655889,83.79,83.762,11.9385879]
[1771348531922,0.45746915,83.791,83.762,11.9385879]
[1771348532115,7.80402804,83.79,83.762,11.9385879]
[1771348532516,7.80402804,83.8,83.763,0.45763076]
[1771348532817,0.45746915,83.815,83.781,0.45763076]
[1771348533917,0.45746915,83.824,83.791,0.45763076]
[1771348534416,14.9,83.848,83.79,23.84655889]
[1771348534417,0.45746915,83.846,83.801,0.45763076]
[1771348534624,11.92648514,83.847,83.801,0.45763076]
[1771348534625,0.45746915,83.839,83.801,0.45763076]
[1771348534821,0.45746915,83.839,83.802,16.5]
[1771348535017,0.45746915,83.839,83.803,0.45763076]
[1771348535203,0.45746915,83.849,83.82,7.34655889]
[1771348535918,0.45746915,83.849,83.821,11.93018455]
[1771348536118,0.45746915,83.849,83.822,0.45763076]
[1771348536512,0.45746915,83.858,83.83,7.34655889]
[1771348537018,0.2614212,83.861,83.831,16.5]
[1771348537323,0.45746915,83.859,83.832,16.5]
[1771348538015,0.2614212,83.861,83.84,7.34655889]
[1771348538214,0.45746915,83.878,83.85,7.34655889]
[1771348538522,0.45746915,83.878,83.851,0.45763076]
[1771348538711,0.45746915,83.898,83.861,0.45763076]
[1771348539727,0.45746915,83.898,83.87,7.34655889]
[1771348540415,0.45746915,83.896,83.862,11.92435191]
[1771348540597,0.45746915,83.896,83.87,7.34655889]
[1771348540796,0.45746915,83.896,83.862,12.38198267]
[1771348541219,0.45746915,83.896,83.87,7.34655889]
[1771348541797,0.45746915,83.896,83.863,0.45763076]
[1771348542001,0.45746915,83.879,83.84,7.34655889]
[1771348542216,0.45746915,83.869,83.841,16.48]
[1771348543102,0.45746915,83.869,83.84,7.34655889]
[1771348543522,0.45746915,83.869,83.837,0.45763076]
[1771348543818,0.45746915,83.868,83.837,0.45763076]
[1771348544422,0.45003941,83.859,83.831,11.92870074]
[1771348544603,0.45003941,83.859,83.832,16.48]
[1771348545010,0.45003941,83.859,83.832,16.93374218]
[1771348545511,0.45003941,83.859,83.825,0.45374218]
[1771348545816,0.45003941,83.859,83.83,7.34655889]
[1771348546020,0.45003941,83.859,83.826,16.48]
[1771348546209,0.45003941,83.859,83.823,16.48]
[1771348546406,0.45003941,83.857,83.824,11.92975758]
[1771348546607,0.45003941,83.839,83.814,16.48]
[1771348546810,0.45003941,83.839,83.801,11.93303182]
[1771348547131,0.45003941,83.839,83.804,16.93374218]
[1771348547513,41.73722243,83.858,83.765,0.45374218]
[1771348547514,0.45003941,83.809,83.765,0.45374218]
[1771348547723,0.45003941,83.809,83.761,0.45374218]
[1771348548037,0.45003941,83.809,83.742,11.94143918]
[1771348548038,7.34655889,83.77,83.742,11.94143918]
[1771348548330,0.45003941,83.771,83.742,28.42143918]
[1771348548626,0.45003941,83.779,83.75,7.34655889]
[1771348548808,0.45003941,83.789,83.75,7.80030107]
[1771348549013,0.45003941,83.788,83.76,7.34655889]
[1771348549429,0.45003941,83.798,83.77,7.34655889]
[1771348549634,0.45003941,83.808,83.771,16.93374218]
[1771348549830,0.45003941,83.808,83.771,16.48]
[1771348550131,0.45003941,83.808,83.75,7.34655889]
[1771348550132,0.45003941,83.808,83.78,7.34655889]
[1771348550636,0.45003941,83.808,83.781,11.93588045]
[1771348550825,0.45003941,83.789,83.741,0.45374218]
[1771348551032,0.45003941,83.789,83.75,7.34655889]
[1771348551412,0.45003941,83.769,83.73,7.34655889]
[1771348551628,7.34655889,83.77,83.74,0.65374218]
[1771348551929,0.45003941,83.771,83.741,11.94158178]
[1771348552329,7.34655889,83.77,83.741,11.94158178]
[1771348552529,0.47334742,83.789,83.751,11.94015593]
[1771348552839,0.47334742,83.798,83.761,0.47083257]
[1771348553086,0.47334742,83.798,83.76,7.34655889]
[1771348553332,7.34655889,83.79,83.76,7.34655889]
[1771348554029,0.47334742,83.797,83.76,7.34655889]
[1771348554618,0.47334742,83.795,83.76,7.34655889]
[1771348554816,0.47334742,83.789,83.755,16.48]
[1771348555030,0.47334742,83.779,83.755,16.48]
[1771348555235,0.47334742,83.779,83.75,19.28679494]
[1771348555418,0.47334742,83.779,83.74,19.48820773]
[1771348555623,7.34655889,83.77,83.741,16.48]
[1771348555949,7.34655889,83.77,83.74,19.48820773]
[1771348555950,0.47334742,83.769,83.74,0.2]
[1771348556240,0.47334742,83.759,83.74,0.2]
[1771348556715,11.93915805,83.758,83.74,0.2]
[1771348556927,11.93822984,83.765,83.74,0.2]
[1771348557543,0.47334742,83.764,83.74,0.2]
[1771348557928,0.47334742,83.759,83.722,16.48]
[1771348558335,0.47334742,83.759,83.723,11.94414915]
[1771348558839,0.47334742,83.757,83.723,11.94414915]
[1771348559751,0.47334742,83.757,83.722,16.48]
[1771348559963,0.47334742,83.757,83.723,11.94414915]
[1771348560344,11.93915805,83.758,83.71,7.34655889]
[1771348560345,0.47334742,83.749,83.71,7.34655889]
[1771348560553,0.47334742,83.739,83.71,7.34655889]
[1771348560862,11.94089575,83.746,83.712,0.47083257]
[1771348561238,0.47334742,83.769,83.73,7.34655889]
[1771348561439,0.47334742,83.769,83.73,24.29739146]
[1771348561737,0.47334742,83.769,83.731,0.47083257]
[1771348562155,0.47334742,83.779,83.741,0.47083257]
[1771348562346,11.93331662,83.799,83.751,0.47083257]
[1771348562547,29.83005374,83.809,83.77,7.81739146]
[1771348562548,0.47334742,83.808,83.77,7.81739146]
[1771348562852,11.93231988,83.806,83.772,11.93716277]
[1771348563034,0.47334742,83.807,83.78,7.34655889]
[1771348563231,0.47334742,83.799,83.76,7.34655889]
[1771348563452,0.47334742,83.789,83.75,7.34655889]
[1771348563637,0.47334742,83.779,83.744,11.94107389]
[1771348563843,0.47334742,83.779,83.745,16.46]
[1771348564050,0.47334742,83.779,83.75,7.34655889]
[1771348564256,0.47334742,83.779,83.745,16.46]
[1771348564568,0.47334742,83.779,83.75,7.34655889]
[1771348565235,11.93630786,83.778,83.75,7.34655889]
[1771348565431,0.47334742,83.777,83.75,7.34655889]
[1771348565636,0.47334742,83.799,83.77,7.34655889]
[1771348565838,0.47334742,83.799,83.724,5.36086188]
[1771348565839,0.47334742,83.779,83.743,16.46]
[1771348566060,0.47334742,83.779,83.75,7.34655889]
[1771348566837,0.47334742,83.779,83.744,16.46]
[1771348567239,0.47334742,83.777,83.75,7.34655889]
[1771348567541,11.93630786,83.778,83.74,7.34655889]
[1771348567542,7.81990631,83.77,83.74,7.34655889]
[1771348568072,0.47334742,83.769,83.74,7.34655889]
[1771348568758,11.93630786,83.778,83.741,0.47083257]
[1771348568961,0.47334742,83.802,83.77,7.34655889]
[1771348569145,11.93160802,83.811,83.781,11.93588045]
[1771348569350,0.47334742,83.812,83.782,0.47083257]
[1771348569554,0.47334742,83.827,83.79,7.34655889]
[1771348569763,0.47334742,83.827,83.791,0.47083257]
[1771348570258,11.92863473,83.832,83.8,7.34655889]
[1771348570565,0.47334742,83.837,83.781,41.77558157]
[1771348570566,11.92662738,83.846,83.811,0.47083257]
[1771348570861,0.47334742,83.859,83.821,0.47083257]
[1771348571160,0.47334742,83.849,83.82,7.34655889]
[1771348571656,0.47334742,83.849,83.821,11.93018455]
[1771348571858,0.47334742,83.849,83.82,7.34655889]
[1771348572062,0.2,83.86,83.83,7.34655889]
[1771348572247,0.47334742,83.859,83.821,11.93018455]
[1771348572948,0.47334742,83.859,83.83,7.34655889]
[1771348573252,12.39812591,83.859,83.83,7.34655889]
[1771348573661,0.2,83.86,83.83,7.34655889]
[1771348573662,0.2,83.86,83.831,11.92876143]
[1771348573870,0.2,83.86,83.85,7.34655889]
[1771348574446,0.47661011,83.859,83.84,7.34655889]
[1771348574747,0.47661011,83.859,83.827,11.92928291]
[1771348574748,0.47661011,83.858,83.82,19.27688578]
[1771348574947,0.47661011,83.849,83.82,7.34655889]
[1771348575268,0.2,83.86,83.84,7.34655889]
[1771348575446,0.47661011,83.892,83.851,0.49751119]
[1771348575646,0.2,83.9,83.88,7.34655889]
[1771348576360,12.1189765,83.9,83.87,7.34655889]
[1771348576942,12.1189765,83.9,83.88,7.34655889]
[1771348577147,0.2,83.9,83.88,7.34655889]
[1771348577347,0.2,83.9,83.87,7.34655889]
[1771348577348,11.91909319,83.899,83.87,7.34655889]
[1771348577547,0.2,83.9,83.88,7.34655889]
[1771348577957,12.11909267,83.9,83.88,7.34655889]
[1771348578158,0.2,83.9,83.882,0.49751119]
[1771348578456,0.2,83.9,83.89,7.34655889]
[1771348578773,0.2,83.9,83.88,7.34655889]
[1771348579652,0.2,83.9,83.89,7.34655889]
[1771348579857,0.2,83.9,83.88,7.34655889]
[1771348580053,0.47661011,83.898,83.868,11.92349883]
[1771348580254,0.47661011,83.898,83.87,7.34655889]
[1771348580583,0.47661011,83.898,83.86,7.34655889]
[1771348580867,0.47661011,83.889,83.85,23.78655889]
[1771348581068,0.47661011,83.889,83.851,11.9259162]
[1771348581575,0.47661011,83.889,83.86,7.34655889]
[1771348581773,0.2,83.9,83.87,7.34655889]
[1771348581957,11.91909319,83.899,83.88,7.34655889]
[1771348582275,0.2,83.9,83.88,7.34655889]
[1771348582480,0.47661011,83.921,83.89,7.34655889]
[1771348582688,0.47661011,83.919,83.88,7.34655889]
[1771348583956,0.47661011,83.917,83.89,7.34655889]
[1771348584261,11.9151167,83.927,83.9,7.34655889]
[1771348584462,0.47661011,83.926,83.9,7.34655889]
[1771348585480,11.91374294,83.937,83.91,7.34655889]
[1771348585681,0.47661011,83.941,83.91,7.34655889]
[1771348585852,0.1,83.95,83.93,7.34655889]
[1771348586377,0.47661011,83.971,83.94,7.84407008]
[1771348586576,11.90901512,83.97,83.95,7.34655889]
[1771348586870,11.90901512,83.97,83.94,7.84407008]
[1771348587075,11.90901512,83.97,83.95,7.34655889]
[1771348587379,0.47661011,83.971,83.95,7.34655889]
[1771348587580,11.90813528,83.977,83.95,7.34655889]
[1771348587970,0.47661011,83.982,83.96,7.34655889]
[1771348588964,11.90745525,83.981,83.96,7.34655889]
[1771348589179,0.47661011,83.98,83.95,7.34655889]
[1771348589479,11.90717168,83.983,83.951,0.49751119]
[1771348589779,17.42441941,83.984,83.96,7.34655889]
[1771348589962,11.90717168,83.983,83.96,7.30599236]
[1771348590667,0.47661011,83.982,83.95,7.30599236]
[1771348590862,0.47661011,83.979,83.95,7.30599236]
[1771348591062,0.47661011,83.979,83.94,35.63926374]
[1771348591277,0.47661011,83.979,83.95,7.30599236]
[1771348592283,17.42441941,83.984,83.96,7.30599236]
[1771348592666,0.47661011,83.983,83.951,41.6909864]
[1771348592863,11.90717168,83.983,83.96,7.30599236]
[1771348593262,11.90717168,83.983,83.951,11.9117104]
[1771348593484,0.47661011,83.982,83.951,11.9117104]
[1771348593682,0.47661011,83.982,83.95,7.30599236]
[1771348593981,0.47661011,83.979,83.95,7.30599236]
[1771348594284,12.38449074,83.978,83.95,7.30599236]
[1771348594881,12.38449074,83.978,83.951,11.9117104]
[1771348595563,11.90788063,83.978,83.951,11.9117104]
[1771348595981,17.42441941,83.984,83.951,11.9117104]
[1771348596187,11.90717168,83.983,83.96,7.30599236]
[1771348596393,11.90717168,83.983,83.951,11.9117104]
[1771348596570,11.90717168,83.983,83.96,7.30599236]
[1771348597074,12.38378179,83.983,83.95,7.30599236]
[1771348597274,0.47661011,83.983,83.96,7.30599236]
[1771348598111,17.42441941,83.984,83.96,7.30599236]
[1771348599377,11.90717168,83.983,83.96,7.30599236]
[1771348599571,17.42441941,83.984,83.96,7.30599236]
[1771348600086,17.90102952,83.984,83.96,7.30599236]
[1771348600291,11.90717168,83.983,83.96,7.30599236]
[1771348600589,17.90102952,83.984,83.96,7.30599236]
[1771348601094,29.80816902,83.984,83.96,7.30599236]
[1771348601403,0.47661011,83.983,83.95,7.30599236]
[1771348601703,0.47661011,83.969,83.94,7.30599236]
[1771348602074,0.47661011,83.969,83.93,7.30599236]
[1771348602402,0.47661011,83.959,83.93,7.30599236]
[1771348602596,0.47661011,83.969,83.931,0.49751119]
[1771348603287,11.90929878,83.968,83.94,7.30599236]
[1771348603601,0.47661011,83.967,83.933,0.49751119]
[1771348605296,11.91071726,83.958,83.926,11.91525868]
[1771348605481,0.45382669,83.969,83.931,0.48506962]
[1771348605672,11.90944061,83.967,83.94,7.30599236]
[1771348606378,11.90944061,83.967,83.932,0.48506962]
[1771348606780,11.90802243,83.977,83.941,0.48506962]
[1771348607283,0.45382669,83.976,83.941,12.39810598]
[1771348607496,0.45382669,83.976,83.942,0.48506962]
[1771348607991,0.45382669,83.969,83.93,19.22063419]
[1771348608184,0.45382669,83.959,83.926,16.42]
[1771348608592,0.45382669,83.949,83.916,0.48506962]
[1771348608787,0.45382669,83.958,83.921,0.48506962]
[1771348609698,0.45382669,83.949,83.921,0.48506962]
[1771348609993,7.75981905,83.94,83.912,0.48506962]
[1771348610196,0.45382669,83.939,83.912,0.48506962]
[1771348610902,0.45382669,83.939,83.907,11.91795678]
[1771348611397,0.45382669,83.929,83.901,16.42]
[1771348611583,0.45382669,83.927,83.901,16.42]
[1771348611786,0.45382669,83.919,83.881,29.80400424]
[1771348611982,0.45382669,83.919,83.883,0.48506962]
[1771348612182,0.45382669,83.919,83.885,11.92108243]
[1771348612381,7.30599236,83.91,83.883,0.48506962]
[1771348612696,0.46752977,83.909,83.877,16.42]
[1771348612899,0.46752977,83.899,83.864,16.42]
[1771348613784,0.46752977,83.898,83.861,0.46203157]
[1771348613988,0.46752977,83.889,83.853,11.92549546]
[1771348614197,7.30599236,83.88,83.852,0.46203157]
[1771348614403,7.30599236,83.88,83.853,16.44]
[1771348614602,0.46752977,83.889,83.853,28.36563176]
[1771348614815,0.46752977,83.879,83.844,16.44]
[1771348615103,7.30599236,83.87,83.845,11.9267291]
[1771348615294,0.46752977,83.879,83.85,7.30599236]
[1771348615487,0.46752977,83.879,83.845,12.38876067]
[1771348615811,0.46752977,83.869,83.845,16.44]
[1771348615978,0.46752977,83.859,83.83,7.30599236]
[1771348616178,0.46752977,83.859,83.826,0.46203157]
[1771348616378,0.46752977,83.859,83.83,7.76802393]
[1771348616600,0.46752977,83.859,83.831,16.44]
[1771348617181,0.46752977,83.859,83.83,7.76802393]
[1771348617402,0.46752977,83.859,83.832,11.92861914]
[1771348617697,7.77352213,83.84,83.81,19.69977431]
[1771348618701,7.30599236,83.85,83.811,0.46203157]
[1771348619004,7.30599236,83.85,83.821,0.46203157]
[1771348619505,7.30599236,83.85,83.822,11.93004223]
[1771348620004,7.30599236,83.85,83.821,0.46203157]
[1771348620005,11.92620067,83.849,83.821,0.46203157]
[1771348620192,0.46752977,83.862,83.823,0.46203157]
[1771348620397,7.30599236,83.88,83.851,0.46203157]
[1771348620702,7.30599236,83.88,83.822,71.58025339]
[1771348620703,0.46752977,83.891,83.861,0.46203157]
[1771348621003,0.46752977,83.879,83.84,7.30599236]
[1771348621202,0.46752977,83.869,83.84,7.30599236]
[1771348621594,7.30599236,83.9,83.83,7.30599236]